bitfinex-derivatives/quotes_ETHF0:USTF0_20260204
["timestamp","ask_amount","ask_price","bid_price","bid_amount"]
[1770227225690,7.07406531,2113.9,2112.1,7.17148515]
[1770227226190,7.07406531,2113.0,2111.4,7.16759974]
[1770227226489,7.07406531,2113.4,2111.8,7.16759974]
[1770227226989,7.0786275,2113.4,2111.8,7.17212298]
[1770227227190,0.00456219,2113.4,2112.0,8.25867974]
[1770227227388,0.00456219,2113.4,2112.2,7.16759974]
[1770227228295,7.07406531,2114.2,2112.4,7.16759974]
[1770227228694,7.31103531,2114.0,2112.0,7.16759974]
[1770227229297,7.3156717,2114.0,2112.0,7.16759974]
[1770227229698,7.0787017,2114.0,2112.2,7.40475974]
[1770227229893,7.0787017,2114.0,2112.4,7.16759974]
[1770227230494,0.00463639,2114.0,2112.6,7.40470974]
[1770227230690,0.00463639,2114.0,2113.0,7.16759974]
[1770227230993,7.07406531,2115.6,2113.6,8.25783974]
[1770227231200,7.07406531,2115.6,2113.8,7.16759974]
[1770227231392,7.07406531,2115.6,2113.8,7.40457974]
[1770227231591,7.07406531,2115.6,2114.0,7.16759974]
[1770227231797,7.07928234,2115.6,2114.0,7.17346111]
[1770227232398,7.31607234,2115.6,2114.0,0.00586137]
[1770227232998,7.07928234,2115.6,2114.0,0.00586137]
[1770227233297,7.07406531,2115.4,2114.0,0.00586137]
[1770227234795,7.07406531,2115.4,2114.0,7.17346111]
[1770227235395,7.07406531,2115.4,2114.0,0.00586137]
[1770227235697,7.07406531,2115.4,2114.0,7.17346111]
[1770227236701,7.07406531,2115.4,2114.0,0.00586137]
[1770227237398,7.07406531,2115.4,2114.0,7.17346111]
[1770227237793,7.07406531,2115.4,2114.0,0.00586137]
[1770227238401,7.07406531,2115.4,2114.0,7.17346111]
[1770227239204,7.07406531,2115.4,2114.0,0.00586137]
[1770227240202,7.07406531,2115.4,2114.0,7.17346111]
[1770227240501,0.00521703,2115.6,2114.2,7.16759974]
[1770227240804,7.07928234,2115.6,2114.2,7.16759974]
[1770227241299,7.07406531,2115.3,2114.0,0.00586137]
[1770227241703,7.07406531,2114.9,2113.0,7.16759974]
[1770227242007,7.07406531,2114.7,2113.0,7.16759974]
[1770227242304,7.07406531,2115.2,2113.4,7.16759974]
[1770227242498,7.07406531,2115.2,2113.7,7.40458974]
[1770227242703,7.07406531,2115.2,2113.7,7.40827872]
[1770227243204,7.07406531,2115.2,2113.9,7.16759974]
[1770227243399,0.473,2115.5,2113.9,7.16759974]
[1770227243400,0.473,2115.5,2114.2,7.16759974]
[1770227243705,0.473,2115.5,2114.1,1.08999]
[1770227243706,0.00521703,2115.6,2114.8,7.16759974]
[1770227243905,0.00521703,2115.6,2114.4,7.27071125]
[1770227244306,7.11398806,2115.6,2114.4,7.27071125]
[1770227244604,7.11398806,2115.6,2114.0,7.27071125]
[1770227245003,7.11398806,2115.6,2113.8,0.473]
[1770227245406,7.10877103,2115.1,2113.7,0.00368898]
[1770227245703,7.10877103,2114.9,2113.7,0.00368898]
[1770227245901,7.10877103,2114.9,2113.7,7.27440023]
[1770227246298,7.10877103,2114.9,2113.7,7.51140023]
[1770227246498,7.10877103,2114.9,2113.7,0.00368898]
[1770227247806,7.10877103,2114.9,2113.7,7.27440023]
[1770227248008,7.10877103,2115.5,2113.8,7.65579552]
[1770227248301,0.00521703,2115.6,2114.2,7.27071125]
[1770227248502,0.00521703,2115.6,2114.5,7.50761125]
[1770227248705,7.11398806,2115.6,2114.2,10.0788534]
[1770227248908,7.11398806,2115.6,2114.2,7.27071125]
[1770227249109,7.11398806,2115.6,2113.9,7.27071125]
[1770227249406,7.10877103,2115.4,2114.1,7.27071125]
[1770227250106,0.00521703,2115.6,2114.3,7.27071125]
[1770227250301,0.00521703,2115.6,2114.6,7.27071125]
[1770227250905,0.00521703,2115.6,2114.4,12.344]
[1770227250906,7.11398806,2115.6,2114.4,12.344]
[1770227251211,7.11398806,2115.6,2114.2,7.27071125]
[1770227251409,7.11398806,2115.6,2114.3,7.65569666]
[1770227251610,7.11398806,2115.6,2113.9,10.0788534]
[1770227251905,7.10877103,2115.3,2113.7,0.00368898]
[1770227252105,7.10877103,2114.9,2113.7,0.00368898]
[1770227252309,7.10877103,2114.7,2113.7,0.00368898]
[1770227254710,0.473,2114.8,2113.7,7.51140023]
[1770227255210,0.473,2114.8,2113.8,7.41881024]
[1770227255406,7.58177103,2114.8,2113.7,0.24068898]
[1770227256002,7.58177103,2114.8,2113.7,0.00368898]
[1770227256409,7.10877103,2115.0,2113.8,7.50770125]
[1770227256609,7.10877103,2115.0,2113.9,7.65578457]
[1770227256810,7.10877103,2115.0,2113.9,0.23697]
[1770227257210,7.10877103,2115.0,2114.0,0.14809863]
[1770227257411,0.473,2115.4,2114.1,0.38504487]
[1770227257614,7.10877103,2115.3,2114.0,4.48394543]
[1770227257814,7.10877103,2115.3,2114.1,0.14808329]
[1770227258012,7.10877103,2115.3,2114.0,14.56279883]
[1770227258213,0.24200703,2115.6,2114.4,7.27071125]
[1770227258214,7.11398806,2115.6,2114.4,7.27071125]
[1770227258514,7.11398806,2115.6,2114.2,1.08996]
[1770227258515,0.00521703,2115.6,2114.7,0.23689]
[1770227258711,7.58177103,2116.1,2114.9,7.27071125]
[1770227258912,7.58177103,2116.1,2115.0,0.14808365]
[1770227259111,7.58177103,2116.1,2114.7,2.80814215]
[1770227259308,7.10877103,2116.1,2115.0,7.27071125]
[1770227259508,7.10877103,2115.8,2114.7,0.62491232]
[1770227259707,7.10877103,2115.8,2114.0,4.39196468]
[1770227259708,7.1128788,2115.8,2114.0,4.39196468]
[1770227259912,7.1128788,2115.8,2114.1,4.76953648]
[1770227260115,7.1128788,2115.8,2114.2,4.53258648]
[1770227260315,7.1128788,2115.8,2114.1,4.39195468]
[1770227260616,7.1128788,2115.8,2114.1,0.23695]
[1770227261115,7.10877103,2115.4,2113.9,0.473]
[1770227261314,7.58177103,2115.3,2114.1,7.27071125]
[1770227261508,7.58177103,2115.3,2114.4,0.23692]
[1770227261710,0.00410777,2115.8,2114.9,0.23686]
[1770227261910,0.00410777,2115.8,2115.0,0.23685]
[1770227262109,7.1128788,2115.8,2114.5,0.2369]
[1770227262317,7.1128788,2115.8,2114.4,4.15500468]
[1770227262318,7.3496488,2115.8,2114.0,0.23696]
[1770227262518,7.10877103,2115.4,2113.9,0.473]
[1770227262718,7.10877103,2115.4,2113.9,0.70997]
[1770227263018,7.10877103,2115.4,2114.2,0.23694]
[1770227263218,7.10877103,2115.4,2114.5,0.23691]
[1770227263418,7.1128788,2115.8,2114.6,0.2369]
[1770227263922,7.1128788,2115.8,2114.4,4.5303429]
[1770227264318,7.1128788,2115.8,2114.2,0.23694]
[1770227264517,7.1128788,2115.8,2114.1,4.53023541]
[1770227264518,7.10877103,2115.6,2114.1,4.53023541]
[1770227264818,7.10877103,2115.3,2113.9,0.473]
[1770227265016,7.10877103,2115.1,2113.9,0.473]
[1770227265216,7.10877103,2115.1,2113.9,5.00379741]
[1770227265419,7.10877103,2115.1,2113.9,0.473]
[1770227265618,7.10877103,2115.1,2113.9,5.00365588]
[1770227265918,7.58177103,2115.2,2114.0,4.53065588]
[1770227266114,7.58177103,2115.2,2114.1,4.53065588]
[1770227266311,7.58177103,2115.2,2113.7,12.88217335]
[1770227266312,7.81860103,2115.2,2113.7,0.00368898]
[1770227266718,7.10877103,2114.7,2113.7,0.00368898]
[1770227267214,0.2369,2114.6,2112.9,4.15500468]
[1770227267519,7.10877103,2114.5,2113.0,4.53059602]
[1770227267715,7.10877103,2114.5,2112.8,4.15500468]
[1770227267920,7.10877103,2114.3,2112.8,4.53067957]
[1770227268119,7.11482995,2114.3,2112.8,0.00573355]
[1770227268721,7.10877103,2114.1,2112.8,0.00573355]
[1770227268917,7.34575103,2113.9,2112.8,0.00573355]
[1770227269114,7.10877103,2113.7,2112.2,4.52875177]
[1770227269319,7.10877103,2113.7,2111.9,0.473]
[1770227269723,7.10877103,2113.7,2111.9,7.74371125]
[1770227269923,7.10877103,2113.7,2112.1,7.27071125]
[1770227270124,7.10877103,2113.5,2112.1,0.00491092]
[1770227270622,7.34580103,2113.5,2112.1,0.00491092]
[1770227271819,7.10877103,2113.5,2112.1,0.00491092]
[1770227272116,7.10877103,2113.5,2112.1,7.27562217]
[1770227272417,4.85833564,2115.7,2114.1,9.45073125]
[1770227272618,10.53604049,2116.4,2114.6,7.27071125]
[1770227272619,8.25221495,2116.3,2114.6,7.27071125]
[1770227272814,8.25221495,2116.3,2114.7,12.70720671]
[1770227273019,8.25221495,2116.3,2114.9,7.27071125]
[1770227273218,8.25221495,2116.3,2115.1,8.36020125]
[1770227273420,8.25708237,2116.3,2115.3,7.27071125]
[1770227273620,8.25708237,2116.3,2115.4,12.70712111]
[1770227273821,8.25708237,2116.3,2115.4,7.27071125]
[1770227276723,8.25708237,2116.3,2115.1,11.84617358]
[1770227276919,8.25708237,2116.3,2115.3,7.62306433]
[1770227277123,8.25221495,2116.2,2115.3,7.62306433]
[1770227277524,8.25221495,2116.2,2115.1,0.00516358]
[1770227277525,7.32528724,2116.1,2115.1,0.00516358]
[1770227277924,7.32528724,2115.9,2115.1,0.00516358]
[1770227278426,0.47786742,2116.3,2115.1,0.00516358]
[1770227278427,8.25221495,2115.8,2115.1,0.00516358]
[1770227278623,7.67932753,2116.3,2115.1,0.00516358]
[1770227278624,8.25221495,2116.1,2115.3,7.74253836]
[1770227279028,8.25221495,2116.1,2115.1,12.38616358]
[1770227279225,15.45367506,2116.1,2115.1,0.00516358]
[1770227279523,7.20146011,2116.0,2115.1,0.00516358]
[1770227279728,8.25221495,2116.1,2115.1,7.51089194]
[1770227279927,8.25221495,2116.0,2115.1,8.60037194]
[1770227280125,8.25221495,2116.2,2115.3,0.23681]
[1770227280330,15.45367506,2116.2,2115.3,0.23681]
[1770227280526,0.00486742,2116.3,2115.8,0.23676]
[1770227280727,0.00486742,2116.3,2115.2,0.23683]
[1770227280728,8.25221495,2116.2,2115.2,0.23683]
[1770227280930,7.20146011,2116.1,2115.2,0.23683]
[1770227281228,7.20146011,2116.1,2115.1,0.47816358]
[1770227281429,8.25221495,2116.0,2115.2,0.23683]
[1770227281628,8.25221495,2116.0,2115.3,0.23682]
[1770227281830,8.25221495,2115.9,2115.5,0.23679]
[1770227282128,7.20146011,2115.9,2115.1,0.47816358]
[1770227282327,7.20632753,2116.3,2115.5,0.23679]
[1770227282529,7.20632753,2116.3,2115.3,1.08937]
[1770227282530,0.02789233,2116.1,2115.7,0.23677]
[1770227282825,3.11625219,2117.6,2115.4,1.08934]
[1770227282826,7.20146011,2116.6,2115.6,1.08923]
[1770227283032,7.20146011,2117.0,2115.9,1.08908]
[1770227283224,7.20146011,2117.0,2115.7,4.21794567]
[1770227283532,7.20146011,2117.0,2116.1,0.23673]
[1770227283732,7.20146011,2117.7,2117.0,0.23663]
[1770227284034,7.20146011,2118.1,2117.6,0.23656]
[1770227284224,7.20146011,2118.5,2117.7,0.23654]
[1770227284630,7.6563368,2118.3,2117.7,0.23654]
[1770227284926,7.20585113,2118.3,2117.7,0.23654]
[1770227285133,7.20146011,2118.0,2117.2,1.08841]
[1770227285434,7.20146011,2118.1,2117.5,0.23657]
[1770227285829,7.20146011,2117.8,2117.5,0.23657]
[1770227286031,7.20146011,2117.8,2117.0,0.00491714]
[1770227286326,7.20146011,2117.6,2117.0,0.24154714]
[1770227286539,7.6563368,2117.6,2116.5,0.23668]
[1770227286839,7.6563368,2117.1,2116.1,0.70972]
[1770227287039,7.20146011,2117.1,2116.2,1.08892]
[1770227287339,7.20146011,2118.1,2116.4,1.08882]
[1770227287539,7.20146011,2117.9,2116.6,0.23667]
[1770227287832,7.20146011,2117.9,2116.9,0.23663]
[1770227288232,7.6563368,2117.5,2116.4,12.58169]
[1770227288432,7.20146011,2117.8,2116.8,1.08862]
[1770227288634,0.00439102,2118.3,2117.6,1.08818]
[1770227288838,0.00439102,2118.3,2118.0,0.23651]
[1770227289038,0.45487669,2118.3,2117.6,0.00467623]
[1770227289335,7.20146011,2118.4,2117.7,0.23655]
[1770227289543,7.20146011,2118.2,2117.6,0.00467623]
[1770227289839,7.20146011,2118.2,2117.3,0.23659]
[1770227290040,7.6563368,2118.0,2117.3,0.23659]
[1770227290238,7.20146011,2118.0,2117.3,0.23659]
[1770227290440,7.6563368,2117.9,2117.5,0.23657]
[1770227290640,7.20606968,2117.9,2117.5,0.00345106]
[1770227290838,7.6563368,2117.6,2117.0,0.23663]
[1770227291140,7.20146011,2117.6,2117.0,0.23663]
[1770227291334,7.6563368,2117.1,2116.2,0.473]
[1770227291532,7.20146011,2117.1,2116.1,0.23673]
[1770227291733,7.20146011,2116.9,2116.1,0.00501039]
[1770227291933,7.20146011,2116.9,2116.1,0.24174039]
[1770227292141,7.6563368,2116.9,2116.3,0.2367]
[1770227292333,7.6563368,2116.6,2116.1,0.00501039]
[1770227292534,7.20146011,2116.6,2115.4,0.473]
[1770227292737,7.20146011,2116.3,2115.3,1.08939]
[1770227292934,7.20146011,2116.3,2115.7,0.23677]
[1770227293137,7.20146011,2117.2,2115.8,0.23676]
[1770227293336,7.20146011,2117.2,2115.9,1.08908]
[1770227293535,7.20530203,2117.2,2115.8,0.00495148]
[1770227293739,7.20146011,2116.9,2115.3,1.08939]
[1770227294042,7.20146011,2116.6,2115.8,0.23676]
[1770227294344,7.20146011,2116.6,2115.9,0.23675]
[1770227294539,7.20146011,2117.1,2116.0,1.08903]
[1770227294743,7.20146011,2117.1,2116.4,0.23669]
[1770227294945,0.00384192,2117.2,2116.6,0.23667]
[1770227295346,0.45871861,2117.2,2116.6,0.23667]
[1770227295540,0.45871861,2117.2,2116.7,0.23666]
[1770227295541,0.00384192,2117.2,2116.7,0.23666]
[1770227295840,0.00384192,2117.2,2116.6,1.08872]
[1770227296145,7.20146011,2117.6,2116.9,0.23664]
[1770227296446,7.20146011,2118.4,2118.0,0.23652]
[1770227296639,7.20146011,2118.4,2116.8,1.5616]
[1770227296938,7.20146011,2118.3,2117.3,1.08836]
[1770227297139,7.20146011,2118.3,2117.7,0.23655]
[1770227297443,7.20146011,2118.3,2116.9,0.473]
[1770227297444,7.20146011,2117.8,2116.9,0.473]
[1770227297639,7.20146011,2117.8,2116.9,0.23664]
[1770227297835,0.45487669,2117.1,2116.8,0.00559397]
[1770227298042,7.20146011,2117.3,2116.3,0.2367]
[1770227298043,7.20146011,2117.5,2116.5,0.23668]
[1770227298242,7.20146011,2117.5,2116.7,0.23666]
[1770227298439,7.20146011,2117.5,2116.9,0.23664]
[1770227299044,7.20146011,2117.5,2116.9,0.24190523]
[1770227299338,0.45487669,2117.1,2116.4,0.23669]
[1770227299543,7.20146011,2116.8,2116.0,0.23674]
[1770227299939,0.45487669,2116.6,2115.5,0.23679]
[1770227300143,7.20146011,2117.5,2115.8,1.08913]
[1770227300339,7.20752667,2117.5,2116.1,0.23673]
[1770227300537,7.20146011,2117.0,2115.7,5.39980663]
[1770227300739,7.20146011,2117.0,2115.6,0.23678]
[1770227300945,7.20146011,2117.0,2115.7,1.08918]
[1770227301148,7.20146011,2117.0,2116.2,0.23671]
[1770227301343,7.20146011,2117.4,2116.4,1.08882]
[1770227301544,7.20146011,2117.4,2116.5,9.636821]
[1770227301745,7.20146011,2117.4,2116.6,5.41887533]
[1770227301946,0.45487669,2116.9,2116.2,0.23672]
[1770227302146,0.45487669,2117.2,2116.4,0.23669]
[1770227302341,7.20146011,2117.3,2116.5,0.23668]
[1770227302549,0.00606656,2117.5,2116.7,5.60777312]
[1770227302848,7.67446011,2117.8,2117.0,7.74235836]
[1770227303044,0.473,2118.7,2117.2,8.59413836]
[1770227303246,0.473,2118.7,2117.0,5.84440312]
[1770227303247,7.43792011,2118.6,2117.0,5.84440312]
[1770227303543,7.20146011,2118.2,2117.1,7.50572836]
[1770227303747,7.20146011,2118.2,2117.4,0.23658]
[1770227303948,0.00444228,2118.2,2117.4,8.32492157]
[1770227304250,7.07771624,2119.0,2118.1,0.23651]
[1770227304444,7.53259293,2119.0,2117.5,5.84433312]
[1770227304649,7.53259293,2119.0,2118.1,0.23651]
[1770227304945,7.07771624,2119.0,2118.2,0.2365]
[1770227305246,0.23631,2119.9,2118.2,0.2365]
[1770227305247,7.07771624,2120.8,2118.9,7.46786017]
[1770227305451,7.07771624,2120.1,2118.9,7.46786017]
[1770227305650,7.07771624,2120.5,2119.6,0.23634]
[1770227306048,7.53259293,2120.5,2119.6,0.23634]
[1770227306351,0.45487669,2120.1,2119.6,0.00611733]
[1770227306653,7.53259293,2119.9,2119.1,0.23639]
[1770227306847,7.07771624,2119.9,2118.9,12.285]
[1770227307144,0.45487669,2119.3,2118.2,7.40516312]
[1770227307452,7.07771624,2119.4,2118.3,8.55576017]
[1770227307645,7.07771624,2119.4,2118.4,7.46791017]
[1770227307945,7.07771624,2119.4,2118.3,1.08784]
[1770227307946,0.45487669,2119.1,2118.3,0.00408497]
[1770227308145,7.07771624,2119.1,2118.3,0.00408497]
[1770227308346,7.07771624,2118.6,2117.5,0.23657]
[1770227308546,7.07771624,2118.4,2117.1,5.60777312]
[1770227308751,7.07771624,2118.4,2116.9,5.84440312]
[1770227308950,7.07771624,2117.8,2116.4,6.69069515]
[1770227309252,7.08243885,2117.8,2116.4,5.98200515]
[1770227309455,7.53259293,2117.6,2116.4,0.23669]
[1770227309753,7.53731554,2117.8,2116.9,0.23664]
[1770227309954,7.08243885,2117.8,2116.9,0.23664]
[1770227310145,7.08243885,2117.8,2116.6,7.23144017]
[1770227310351,7.07771624,2117.5,2116.5,0.23668]
[1770227310553,7.53259293,2117.2,2116.1,5.60777312]
[1770227310750,7.07771624,2117.2,2116.1,5.60777312]
[1770227310953,7.07771624,2117.6,2116.3,0.2367]
[1770227311154,7.07771624,2117.6,2116.5,0.23668]
[1770227311556,0.00472261,2117.8,2117.1,0.23661]
[1770227311854,7.08243885,2117.8,2116.6,12.83921329]
[1770227312051,7.53259293,2117.7,2116.4,5.84446312]
[1770227312254,7.53259293,2117.7,2116.5,5.60777312]
[1770227312450,0.45487669,2117.4,2116.6,5.60777312]
[1770227312653,0.00472261,2117.8,2116.7,5.60777312]
[1770227312951,0.00472261,2117.8,2116.8,12.83921329]
[1770227313251,0.45487669,2117.6,2116.9,5.60777312]
[1770227313556,7.08243885,2117.8,2116.7,5.60777312]
[1770227313751,7.07771624,2117.3,2116.5,5.60777312]
[1770227313957,7.53259293,2117.2,2116.3,5.60777312]
[1770227314157,7.53259293,2117.2,2116.4,5.21694977]
[1770227314158,7.07771624,2117.2,2116.4,5.21694977]
[1770227314359,7.07771624,2117.2,2116.1,5.60777312]
[1770227314558,7.07771624,2117.2,2116.2,10.82437148]
[1770227314753,7.07771624,2116.9,2116.0,5.60777312]
[1770227315057,7.07771624,2116.7,2115.0,7.23144017]
[1770227315256,7.07771624,2116.5,2114.9,0.37950125]
[1770227315457,7.07771624,2116.5,2114.4,8.32128017]
[1770227315657,7.07771624,2116.5,2114.6,7.46833017]
[1770227316057,7.07771624,2116.5,2114.6,7.23144017]
[1770227316358,7.07771624,2116.5,2115.0,7.23144017]
[1770227316557,7.07771624,2116.5,2115.0,7.46829017]
[1770227316757,7.07771624,2116.5,2115.0,0.23685]
[1770227317254,7.07771624,2116.5,2114.6,8.32119017]
[1770227317455,7.07771624,2116.5,2114.7,0.23689]
[1770227317650,7.07771624,2116.5,2114.6,7.23144017]
[1770227317857,7.07771624,2116.5,2114.3,7.70439876]
[1770227318360,7.07771624,2116.5,2114.5,7.46837017]
[1770227318755,7.07771624,2116.5,2114.5,7.23144017]
[1770227319060,7.07771624,2116.5,2114.3,0.47295859]
[1770227319061,7.31446624,2116.2,2114.3,0.47295859]
[1770227319263,7.07771624,2115.8,2114.3,0.47295859]
[1770227319462,7.07771624,2115.6,2114.3,0.47295859]
[1770227319656,7.07771624,2116.0,2114.5,7.23144017]
[1770227319861,7.07771624,2115.7,2114.3,0.47295859]
[1770227323057,0.23685,2115.3,2113.6,7.23144017]
[1770227323360,7.31457624,2115.2,2113.2,7.23144017]
[1770227323555,7.07771624,2115.2,2113.4,7.23144017]
[1770227323751,7.07771624,2115.2,2113.5,7.23144017]
[1770227323957,7.07771624,2115.2,2113.7,11.95624017]
[1770227324360,0.23683,2115.4,2113.3,7.23144017]
[1770227324361,0.23687,2115.1,2113.3,7.23144017]
[1770227324556,7.55071624,2115.0,2113.3,7.23144017]
[1770227325355,7.78760624,2115.0,2113.0,7.23675443]
[1770227325561,7.55071624,2115.0,2113.5,7.23144017]
[1770227325862,0.473,2115.0,2113.9,7.23144017]
[1770227326062,0.473,2115.0,2114.1,7.23144017]
[1770227326662,0.473,2115.0,2114.2,4.7248]
[1770227326961,0.473,2115.0,2114.3,4.7248]
[1770227327162,0.473,2115.0,2114.5,4.7248]
[1770227327363,7.07771624,2115.5,2114.5,7.23676814]
[1770227327663,7.07771624,2115.5,2114.5,0.00532797]
[1770227328460,7.07771624,2115.5,2114.6,4.7248]
[1770227328763,7.07771624,2115.5,2114.5,0.00532797]
[1770227328959,7.07771624,2115.5,2113.6,7.23144017]
[1770227329363,7.07771624,2114.9,2112.7,7.46857017]
[1770227329563,7.07771624,2114.9,2113.2,7.23144017]
[1770227329964,7.07771624,2114.9,2113.2,11.95624017]
[1770227330169,7.07771624,2114.9,2113.2,7.23144017]
[1770227330367,7.07771624,2114.9,2113.3,7.23144017]
[1770227330568,7.31460624,2114.9,2113.3,7.23144017]
[1770227330763,7.31460624,2114.9,2112.6,1.56388]
[1770227330764,7.07771624,2114.5,2112.6,7.70444017]
[1770227330961,7.07771624,2114.3,2112.6,7.70444017]
[1770227331165,7.31467624,2114.3,2112.6,7.70444017]
[1770227331464,7.31467624,2114.3,2112.7,11.95624017]
[1770227331669,7.31467624,2114.3,2112.7,7.23144017]
[1770227332170,7.07771624,2114.1,2111.9,7.23144017]
[1770227332368,7.07771624,2113.8,2112.0,7.23144017]
[1770227332665,7.07771624,2113.8,2112.2,7.46863017]
[1770227332870,7.07771624,2113.8,2112.5,7.23144017]
[1770227333067,7.07771624,2113.4,2111.9,7.23144017]
[1770227333268,7.07771624,2113.2,2111.9,7.23144017]
[1770227333464,0.473,2113.3,2112.2,7.23144017]
[1770227333664,0.473,2113.3,2112.4,4.7248]
[1770227333867,7.85810276,2113.3,2112.0,7.10897989]
[1770227334670,7.85810276,2113.3,2112.4,4.7248]
[1770227335374,7.85810276,2113.3,2112.5,4.7248]
[1770227335675,8.09517276,2113.3,2111.6,7.10897989]
[1770227336071,8.09517276,2113.3,2111.7,7.10897989]
[1770227336380,7.38510276,2112.6,2111.0,7.10897989]
[1770227336672,7.38894749,2112.6,2111.0,7.10897989]
[1770227336868,7.38894749,2112.6,2110.9,7.10897989]
[1770227337476,7.38894749,2112.6,2111.3,7.10897989]
[1770227337971,7.38894749,2112.6,2111.0,7.10897989]
[1770227338175,7.62609749,2112.6,2111.0,7.10897989]
[1770227338672,7.38835377,2112.2,2110.6,7.19449614]
[1770227338873,7.38835377,2111.6,2109.7,7.19449614]
[1770227339072,7.38835377,2111.4,2109.7,7.19449614]
[1770227339573,7.38835377,2111.4,2110.0,7.19449614]
[1770227339774,7.38835377,2111.4,2110.1,11.91929614]
[1770227340275,7.38835377,2111.8,2110.7,7.19449614]
[1770227340576,0.473,2111.9,2110.8,7.19449614]
[1770227340967,0.473,2111.9,2111.4,11.91929614]
[1770227341174,0.00384473,2112.6,2111.7,7.19449614]
[1770227341569,0.00384473,2112.6,2112.1,4.7248]
[1770227341774,0.00384473,2112.6,2112.0,4.7248]
[1770227342271,0.00384473,2112.6,2112.1,4.7248]
[1770227342578,0.473,2113.2,2112.5,4.7248]
[1770227342777,0.473,2113.2,2112.6,7.19449614]
[1770227342978,3.79,2114.0,2112.7,7.19449614]
[1770227343277,0.473,2114.0,2112.8,7.19449614]
[1770227343479,0.47890968,2114.0,2112.9,7.19449614]
[1770227343780,0.00590968,2114.0,2113.5,2.19449614]
[1770227343978,0.00590968,2114.0,2113.8,4.7248]
[1770227344275,7.38835377,2114.7,2113.7,4.7248]
[1770227344680,7.38835377,2114.7,2113.0,0.23709]
[1770227344880,7.38835377,2114.7,2113.5,4.7248]
[1770227345077,0.0043628,2114.7,2113.6,4.7248]
[1770227345276,0.0043628,2114.7,2114.2,4.7248]
[1770227345476,0.473,2114.8,2114.1,4.7248]
[1770227345678,0.473,2114.8,2113.6,4.7248]
[1770227345880,0.473,2114.8,2113.9,7.19449614]
[1770227346176,7.86135377,2114.8,2113.5,7.19449614]
[1770227346381,0.47766361,2114.8,2113.9,7.19449614]
[1770227347180,0.47766361,2114.8,2113.9,11.91929614]
[1770227347381,0.47766361,2114.8,2114.0,4.7248]
[1770227347684,0.47766361,2114.8,2113.9,11.91929614]
[1770227348175,0.47766361,2114.8,2114.0,7.19449614]
[1770227348382,0.47766361,2114.8,2114.0,11.91929614]
[1770227348577,0.47766361,2114.8,2114.1,4.7248]
[1770227349073,0.47766361,2114.8,2113.5,3.03318466]
[1770227349074,0.00466361,2114.8,2114.2,7.19449614]
[1770227349278,7.38835377,2115.5,2114.3,7.19449614]
[1770227349583,7.38835377,2116.0,2114.6,7.19449614]
[1770227349782,7.86135377,2116.0,2114.6,7.19449614]
[1770227350275,7.86135377,2116.0,2114.8,11.91929614]
[1770227350481,7.86694408,2116.0,2114.9,7.19449614]
[1770227350677,7.86694408,2116.0,2114.6,0.00496236]
[1770227352884,7.86694408,2116.0,2114.6,7.1994585]
[1770227353284,0.00559031,2116.0,2114.6,7.1994585]
[1770227353483,0.45,2116.4,2115.2,0.23685]
[1770227353678,0.45,2116.4,2115.3,7.19449614]
[1770227353878,7.86135377,2117.1,2115.4,7.19449614]
[1770227354078,7.86135377,2117.1,2115.4,7.43132614]
[1770227354280,7.86135377,2117.1,2115.5,7.43131614]
[1770227354484,0.00366936,2117.1,2115.9,7.43126614]
[1770227354682,7.39202313,2117.1,2115.9,7.19449614]
[1770227355279,7.38835377,2117.8,2116.1,7.19449614]
[1770227355480,7.38835377,2117.8,2116.1,7.43124614]
[1770227355986,7.38835377,2117.8,2116.1,7.19449614]
[1770227356483,7.39405769,2117.8,2116.1,7.20041962]
[1770227356687,8.71883769,2117.8,2116.1,0.00592348]
[1770227356988,7.63062769,2117.8,2116.1,0.00592348]
[1770227357986,7.38835377,2117.6,2116.1,0.00592348]
[1770227358189,7.62494377,2117.6,2116.1,0.00592348]
[1770227358382,7.38835377,2117.3,2116.1,0.00592348]
[1770227358688,7.62498377,2117.3,2115.3,0.473]
[1770227358985,7.62498377,2117.3,2115.3,7.22040165]
[1770227359387,7.38835377,2116.5,2114.6,0.23692]
[1770227359587,7.38835377,2116.3,2114.7,6.74740165]
[1770227359888,7.63086575,2116.3,2114.6,0.00563166]
[1770227360785,0.23675,2116.2,2114.6,0.00563166]
[1770227360989,7.38835377,2116.1,2114.6,0.00563166]
[1770227361489,7.62514377,2115.8,2114.6,0.00563166]
[1770227361690,7.38835377,2115.8,2114.3,0.47295859]
[1770227362085,7.38835377,2116.1,2114.6,6.78826217]
[1770227362289,0.00578198,2116.3,2114.8,7.02515217]
[1770227362588,0.00578198,2116.3,2115.0,6.84409644]
[1770227362789,0.00578198,2116.3,2115.0,6.60721644]
[1770227362985,7.39413575,2116.3,2115.0,6.60721644]
[1770227363986,0.00578198,2116.3,2115.0,6.60721644]
[1770227364890,7.11385343,2116.3,2115.0,6.60721644]
[1770227367087,7.11385343,2116.3,2114.8,0.00469907]
[1770227368488,7.11385343,2116.3,2114.8,6.35242851]
[1770227368683,7.11385343,2116.3,2115.1,6.34971994]
[1770227368885,7.11385343,2116.3,2115.0,0.23687]
[1770227369090,7.11385343,2116.3,2115.0,6.58658994]
[1770227369282,7.11385343,2116.3,2114.8,0.00469907]
[1770227369482,7.11385343,2116.3,2114.8,6.35441901]
[1770227369992,7.11385343,2116.3,2114.8,6.59131901]
[1770227370992,7.11385343,2116.3,2114.8,0.24159907]
[1770227371190,7.11385343,2116.3,2114.8,0.00469907]
[1770227371792,7.11385343,2116.3,2114.8,6.34833416]
[1770227371994,7.10807145,2116.1,2114.8,0.00469907]
[1770227372490,7.10807145,2116.1,2114.8,6.34833416]
[1770227372887,7.10807145,2116.1,2114.8,0.00469907]
[1770227374592,7.10807145,2116.1,2114.9,6.2542381]
[1770227374794,7.10807145,2116.1,2115.0,13.94844727]
[1770227375094,7.10807145,2116.1,2115.0,9.02698015]
[1770227375293,7.10807145,2116.1,2115.2,2.77274205]
[1770227375493,0.473,2116.2,2115.2,2.77274205]
[1770227375991,0.473,2116.2,2115.1,9.02698015]
[1770227376295,0.473,2116.2,2115.2,7.69569115]
[1770227376493,0.473,2116.2,2115.3,4.9229491]
[1770227376686,0.473,2116.2,2115.2,2.77274205]
[1770227376892,0.473,2116.2,2115.3,4.92601916]
[1770227377092,0.473,2116.2,2115.2,2.77274205]
[1770227377389,7.58107145,2116.2,2115.3,4.92602355]
[1770227377591,7.58107145,2116.2,2115.2,2.77274205]
[1770227379091,7.58107145,2116.2,2115.1,2.77274205]
[1770227379491,7.81781145,2116.2,2115.0,2.77274205]
[1770227379693,7.81781145,2116.2,2114.9,2.77274205]
[1770227380094,7.58107145,2116.2,2115.0,7.70802842]
[1770227380399,0.473,2117.1,2115.8,6.17874948]
[1770227380596,7.10807145,2117.5,2116.3,2.77274205]